[Event "Late-Titled-Tuesday-Blitz-October-17-2023"]
[Site "Chess.com"]
[Date "2023.10.17"]
[Round "8"]
[White "DawidCzerw"]
[Black "expii"]
[Result "1-0"]
[WhiteElo "2524"]
[BlackElo "2244"]
[TimeControl "180+1"]
[EndTime "15:20:43 PDT"]
[Termination "DawidCzerw won by resignation"]

1. e4 {[%clk 0:03:00.9]} 1... c5 {[%clk 0:02:51.7]} 2. Nf3 {[%clk 0:03:01]} 2...
d6 {[%clk 0:02:52.4]} 3. d4 {[%clk 0:03:01.4]} 3... cxd4 {[%clk 0:02:53.3]} 4.
Nxd4 {[%clk 0:03:02.2]} 4... Nf6 {[%clk 0:02:53.9]} 5. Nc3 {[%clk 0:03:02.7]}
5... g6 {[%clk 0:02:54.6]} 6. h4 {[%clk 0:03:03.1]} 6... Bg7 {[%clk 0:02:52.4]}
7. f3 {[%clk 0:03:03.6]} 7... O-O {[%clk 0:02:51.4]} 8. Be3 {[%clk 0:03:04.2]}
8... Nc6 {[%clk 0:02:50.4]} 9. h5 {[%clk 0:03:04.7]} 9... Nxh5 {[%clk
0:02:49.9]} 10. Qd2 {[%clk 0:03:04.5]} 10... Nxd4 {[%clk 0:02:44]} 11. Bxd4
{[%clk 0:03:04.7]} 11... Nf6 {[%clk 0:02:44.2]} 12. g4 {[%clk 0:03:04.5]} 12...
e5 {[%clk 0:02:42]} 13. Be3 {[%clk 0:03:01.2]} 13... Be6 {[%clk 0:02:42]} 14.
O-O-O {[%clk 0:03:01.3]} 14... Rc8 {[%clk 0:02:38]} 15. Bh6 {[%clk 0:03:00.4]}
15... a6 {[%clk 0:02:23.4]} 16. Bd3 {[%clk 0:02:58.9]} 16... b5 {[%clk
0:02:21.5]} 17. Bxg7 {[%clk 0:02:59]} 17... Kxg7 {[%clk 0:02:21.6]} 18. Qh6+
{[%clk 0:02:59.7]} 18... Kg8 {[%clk 0:02:21.3]} 19. Rh2 {[%clk 0:03:00.3]} 19...
b4 {[%clk 0:02:13.8]} 20. Nd5 {[%clk 0:03:00]} 20... Bxd5 {[%clk 0:02:13.2]} 21.
exd5 {[%clk 0:03:00.9]} 21... b3 {[%clk 0:01:43.7]} 22. axb3 {[%clk 0:02:59.8]}
22... Qa5 {[%clk 0:01:33.5]} 23. g5 {[%clk 0:03:00.3]} 23... Qa1+ {[%clk
0:01:20.1]} 24. Kd2 {[%clk 0:03:00.8]} 24... Qxb2 {[%clk 0:01:21]} 25. gxf6
{[%clk 0:03:00.3]} 25... Qc3+ {[%clk 0:01:21.7]} 26. Ke2 {[%clk 0:03:00.5]} 1-0

[Event "Late-Titled-Tuesday-Blitz-October-17-2023"]
[Site "Chess.com"]
[Date "2023.10.17"]
[Round "8"]
[White "NigelDwarf"]
[Black "nochewycandy"]
[Result "0-1"]
[WhiteElo "2561"]
[BlackElo "2742"]
[TimeControl "180+1"]
[EndTime "15:20:56 PDT"]
[Termination "nochewycandy won by resignation"]

1. e4 {[%clk 0:02:55.3]} 1... e5 {[%clk 0:02:59]} 2. f4 {[%clk 0:02:44.3]} 2...
exf4 {[%clk 0:02:56.9]} 3. Nf3 {[%clk 0:02:44.1]} 3... Nf6 {[%clk 0:02:56.3]} 4.
e5 {[%clk 0:02:41]} 4... Nh5 {[%clk 0:02:56.5]} 5. d4 {[%clk 0:02:40.6]} 5... d6
{[%clk 0:02:56.2]} 6. Bc4 {[%clk 0:02:36.9]} 6... Nc6 {[%clk 0:02:53.5]} 7. Qe2
{[%clk 0:02:17.7]} 7... d5 {[%clk 0:02:36.1]} 8. Bd3 {[%clk 0:02:14.6]} 8... Bg4
{[%clk 0:02:30.2]} 9. O-O {[%clk 0:02:09.4]} 9... Nxd4 {[%clk 0:02:13.6]} 10.
Qf2 {[%clk 0:01:59]} 10... Nxf3+ {[%clk 0:02:08.2]} 11. gxf3 {[%clk 0:01:57]}
11... Bh3 {[%clk 0:02:01.7]} 12. Re1 {[%clk 0:01:56.4]} 12... Bc5 {[%clk
0:01:49.3]} 0-1

[Event "Late-Titled-Tuesday-Blitz-October-17-2023"]
[Site "Chess.com"]
[Date "2023.10.17"]
[Round "8"]
[White "filipluczak05"]
[Black "Levanzovsky"]
[Result "1-0"]
[WhiteElo "2625"]
[BlackElo "2442"]
[TimeControl "180+1"]
[EndTime "15:21:58 PDT"]
[Termination "filipluczak05 won by resignation"]

1. d4 {[%clk 0:03:00.7]} 1... Nf6 {[%clk 0:03:00.2]} 2. Nc3 {[%clk 0:02:50.1]}
2... e6 {[%clk 0:03:01.1]} 3. Bf4 {[%clk 0:02:45.6]} 3... Bb4 {[%clk 0:03:01.1]}
4. e3 {[%clk 0:02:43.3]} 4... Nd5 {[%clk 0:03:01.6]} 5. Ne2 {[%clk 0:02:42.3]}
5... Nxf4 {[%clk 0:03:01.8]} 6. Nxf4 {[%clk 0:02:41.9]} 6... d5 {[%clk
0:03:02.7]} 7. Bd3 {[%clk 0:02:41.9]} 7... b6 {[%clk 0:03:01.1]} 8. a3 {[%clk
0:02:41.6]} 8... Bxc3+ {[%clk 0:02:59.7]} 9. bxc3 {[%clk 0:02:42.5]} 9... Bb7
{[%clk 0:02:59.2]} 10. Qg4 {[%clk 0:02:42]} 10... g6 {[%clk 0:02:57.6]} 11. h4
{[%clk 0:02:42]} 11... Nd7 {[%clk 0:02:57.8]} 12. h5 {[%clk 0:02:42.4]} 12...
Nf6 {[%clk 0:02:57.8]} 13. Qg3 {[%clk 0:02:42.4]} 13... Rg8 {[%clk 0:02:29.8]}
14. hxg6 {[%clk 0:02:40.4]} 14... hxg6 {[%clk 0:02:30.5]} 15. Ke2 {[%clk
0:02:38.1]} 15... Qe7 {[%clk 0:02:24.3]} 16. a4 {[%clk 0:02:37.4]} 16... a5
{[%clk 0:02:23.5]} 17. Bb5+ {[%clk 0:02:32.7]} 17... c6 {[%clk 0:02:23]} 18. Bd3
{[%clk 0:02:33.3]} 18... Kd7 {[%clk 0:02:18]} 19. Rab1 {[%clk 0:02:33.1]} 19...
Qd8 {[%clk 0:02:14.3]} 20. Qg5 {[%clk 0:02:26.4]} 20... Ba6 {[%clk 0:02:14.2]}
21. Rxb6 {[%clk 0:02:20.7]} 21... Qxb6 {[%clk 0:02:11.8]} 22. Qxf6 {[%clk
0:02:20.4]} 22... Rgf8 {[%clk 0:01:54.2]} 23. Rh7 {[%clk 0:02:19.8]} 23... Rae8
{[%clk 0:01:48.1]} 24. Nxg6 {[%clk 0:02:14.8]} 24... Bxd3+ {[%clk 0:01:47.5]}
25. cxd3 {[%clk 0:02:14.4]} 25... Qb2+ {[%clk 0:01:28.4]} 26. Kf3 {[%clk
0:02:14.2]} 26... Qxc3 {[%clk 0:01:17.8]} 27. Rxf7+ {[%clk 0:02:08]} 27... Rxf7
{[%clk 0:01:16.8]} 28. Qxf7+ {[%clk 0:02:08.9]} 28... Kd8 {[%clk 0:01:17.2]} 29.
Ne5 {[%clk 0:02:09.1]} 29... Re7 {[%clk 0:01:16.1]} 30. Qf8+ {[%clk 0:02:08.7]}
30... Re8 {[%clk 0:01:14]} 31. Qd6+ {[%clk 0:02:09.6]} 31... Kc8 {[%clk
0:01:14.4]} 32. Qd7+ {[%clk 0:02:10.3]} 1-0

[Event "Late-Titled-Tuesday-Blitz-October-17-2023"]
[Site "Chess.com"]
[Date "2023.10.17"]
[Round "8"]
[White "Inepton_Fermion"]
[Black "Mikhail_Golubev"]
[Result "0-1"]
[WhiteElo "2380"]
[BlackElo "2553"]
[TimeControl "180+1"]
[EndTime "15:22:29 PDT"]
[Termination "Mikhail_Golubev won by resignation"]

1. Nf3 {[%clk 0:03:00.9]} 1... d6 {[%clk 0:02:59.7]} 2. d4 {[%clk 0:02:57.6]}
2... Nf6 {[%clk 0:02:59.7]} 3. b3 {[%clk 0:02:54.8]} 3... g6 {[%clk 0:02:58.5]}
4. Bb2 {[%clk 0:02:54.8]} 4... Bg7 {[%clk 0:02:59.1]} 5. g3 {[%clk 0:02:55]}
5... O-O {[%clk 0:02:59.6]} 6. Bg2 {[%clk 0:02:55.4]} 6... a5 {[%clk 0:02:59.7]}
7. O-O {[%clk 0:02:46.2]} 7... a4 {[%clk 0:02:59.5]} 8. c4 {[%clk 0:02:41.7]}
8... c6 {[%clk 0:02:35.4]} 9. Nbd2 {[%clk 0:02:39.3]} 9... a3 {[%clk 0:02:27.2]}
10. Bc3 {[%clk 0:02:38.5]} 10... d5 {[%clk 0:02:23.6]} 11. Re1 {[%clk
0:02:23.4]} 11... Ne4 {[%clk 0:02:16.8]} 12. Nxe4 {[%clk 0:02:00.7]} 12... dxe4
{[%clk 0:02:17.7]} 13. Ng5 {[%clk 0:02:00.4]} 13... e3 {[%clk 0:02:08.4]} 14. f4
{[%clk 0:01:44.9]} 14... c5 {[%clk 0:02:00.9]} 15. Nf3 {[%clk 0:01:44.2]} 15...
Nc6 {[%clk 0:01:56.6]} 16. Ne5 {[%clk 0:01:11]} 16... cxd4 {[%clk 0:01:55.1]}
17. Nxc6 {[%clk 0:01:02.2]} 17... bxc6 {[%clk 0:01:54.2]} 18. Bxc6 {[%clk
0:00:53.9]} 18... Ra6 {[%clk 0:01:47.5]} 19. Bb5 {[%clk 0:00:53.5]} 19... dxc3
{[%clk 0:01:40.1]} 20. Qxd8 {[%clk 0:00:53.3]} 20... Rxd8 {[%clk 0:01:39.5]} 21.
Bxa6 {[%clk 0:00:54.2]} 21... Bxa6 {[%clk 0:01:39.6]} 22. Rad1 {[%clk
0:00:54.8]} 22... Rd2 {[%clk 0:01:38.9]} 0-1

[Event "Late-Titled-Tuesday-Blitz-October-17-2023"]
[Site "Chess.com"]
[Date "2023.10.17"]
[Round "8"]
[White "YouShallNotPass001"]
[Black "arminmusovic"]
[Result "1-0"]
[WhiteElo "2403"]
[BlackElo "2457"]
[TimeControl "180+1"]
[EndTime "15:23:10 PDT"]
[Termination "YouShallNotPass001 won by resignation"]

1. Nf3 {[%clk 0:03:00.9]} 1... Nf6 {[%clk 0:02:54.6]} 2. e3 {[%clk 0:03:01.8]}
2... d5 {[%clk 0:02:54.4]} 3. Be2 {[%clk 0:03:01.2]} 3... c5 {[%clk 0:02:55]} 4.
O-O {[%clk 0:03:01.9]} 4... Nc6 {[%clk 0:02:55.6]} 5. d4 {[%clk 0:03:02.5]} 5...
Bg4 {[%clk 0:02:51.8]} 6. Nbd2 {[%clk 0:03:02.6]} 6... e6 {[%clk 0:02:51.8]} 7.
h3 {[%clk 0:03:02]} 7... Bh5 {[%clk 0:02:50.4]} 8. a3 {[%clk 0:03:02.2]} 8... a6
{[%clk 0:02:46.9]} 9. dxc5 {[%clk 0:03:00.6]} 9... Bxc5 {[%clk 0:02:47.8]} 10.
b4 {[%clk 0:03:00.9]} 10... Bd6 {[%clk 0:02:48.5]} 11. c4 {[%clk 0:03:00]} 11...
O-O {[%clk 0:02:48.1]} 12. Bb2 {[%clk 0:02:58.9]} 12... Rc8 {[%clk 0:02:47]} 13.
Rc1 {[%clk 0:02:58.3]} 13... Bb8 {[%clk 0:02:46.8]} 14. Qb3 {[%clk 0:02:50.7]}
14... Re8 {[%clk 0:02:39.6]} 15. Rfd1 {[%clk 0:02:50.2]} 15... Qd6 {[%clk
0:02:35.5]} 16. cxd5 {[%clk 0:02:43.4]} 16... exd5 {[%clk 0:02:32.4]} 17. Bxf6
{[%clk 0:02:28]} 17... gxf6 {[%clk 0:02:32.2]} 18. Nf1 {[%clk 0:02:25.6]} 18...
Rcd8 {[%clk 0:02:15.1]} 19. Rc5 {[%clk 0:02:23.6]} 19... Bxf3 {[%clk 0:02:13.1]}
20. Bxf3 {[%clk 0:02:21.4]} 20... d4 {[%clk 0:02:07.5]} 21. Bxc6 {[%clk
0:02:20.2]} 21... bxc6 {[%clk 0:02:03.9]} 22. Rxd4 {[%clk 0:02:20.6]} 22... Qc7
{[%clk 0:02:01.5]} 23. Rg4+ {[%clk 0:02:08]} 23... Kh8 {[%clk 0:02:00]} 24. Qc2
{[%clk 0:02:08.4]} 24... Re6 {[%clk 0:01:48.2]} 25. Rh5 {[%clk 0:02:06.6]} 25...
f5 {[%clk 0:01:46.3]} 26. Qxf5 {[%clk 0:01:58.2]} 26... Rg6 {[%clk 0:01:46.6]}
27. Rgh4 {[%clk 0:01:29.2]} 27... Kg8 {[%clk 0:01:11.2]} 28. Rxh7 {[%clk
0:01:24.9]} 28... Rd1 {[%clk 0:00:42.4]} 29. Rh8+ {[%clk 0:01:19.4]} 1-0

[Event "Late-Titled-Tuesday-Blitz-October-17-2023"]
[Site "Chess.com"]
[Date "2023.10.17"]
[Round "8"]
[White "tylityli"]
[Black "imdvb6307"]
[Result "0-1"]
[WhiteElo "2337"]
[BlackElo "2490"]
[TimeControl "180+1"]
[EndTime "15:23:15 PDT"]
[Termination "imdvb6307 won by resignation"]

1. d4 {[%clk 0:02:56.7]} 1... d5 {[%clk 0:03:00]} 2. c4 {[%clk 0:02:56.2]} 2...
c6 {[%clk 0:03:00.4]} 3. cxd5 {[%clk 0:02:56.3]} 3... cxd5 {[%clk 0:02:59.7]} 4.
Bf4 {[%clk 0:02:57.2]} 4... Nc6 {[%clk 0:02:58.6]} 5. e3 {[%clk 0:02:56.4]} 5...
Bf5 {[%clk 0:02:57.2]} 6. Nc3 {[%clk 0:02:56.4]} 6... Nf6 {[%clk 0:02:51.3]} 7.
Qb3 {[%clk 0:02:55.7]} 7... Na5 {[%clk 0:02:47.9]} 8. Qa4+ {[%clk 0:02:55.7]}
8... Bd7 {[%clk 0:02:48]} 9. Qc2 {[%clk 0:02:56.4]} 9... Rc8 {[%clk 0:02:47.4]}
10. Bd3 {[%clk 0:02:55.9]} 10... e6 {[%clk 0:02:47.3]} 11. Nf3 {[%clk
0:02:55.8]} 11... Be7 {[%clk 0:02:45.5]} 12. O-O {[%clk 0:02:55.6]} 12... O-O
{[%clk 0:02:45.6]} 13. Qe2 {[%clk 0:02:55.2]} 13... a6 {[%clk 0:02:45.5]} 14.
Ne5 {[%clk 0:02:51.6]} 14... b5 {[%clk 0:02:24.8]} 15. Rac1 {[%clk 0:02:51]}
15... Nc4 {[%clk 0:02:22.4]} 16. b3 {[%clk 0:02:44.7]} 16... Nd6 {[%clk
0:02:11.7]} 17. Nb1 {[%clk 0:02:37.4]} 17... Qa5 {[%clk 0:01:57.7]} 18. f3
{[%clk 0:02:29.5]} 18... Rc7 {[%clk 0:01:48.8]} 19. g4 {[%clk 0:01:59.9]} 19...
Rfc8 {[%clk 0:01:41.2]} 20. Rxc7 {[%clk 0:01:55.2]} 20... Qxc7 {[%clk 0:01:41]}
21. Nd2 {[%clk 0:01:42.4]} 21... Be8 {[%clk 0:01:39.4]} 22. Nb1 {[%clk
0:01:39.5]} 22... Nd7 {[%clk 0:01:37.8]} 23. e4 {[%clk 0:01:26.3]} 23... Nb6
{[%clk 0:01:35.8]} 24. Rf2 {[%clk 0:01:14.3]} 24... f6 {[%clk 0:01:35.5]} 25.
exd5 {[%clk 0:00:33.6]} 25... Nxd5 {[%clk 0:01:35.3]} 26. Qe4 {[%clk 0:00:20]}
26... Nxe4 {[%clk 0:01:34.3]} 0-1

[Event "Late-Titled-Tuesday-Blitz-October-17-2023"]
[Site "Chess.com"]
[Date "2023.10.17"]
[Round "8"]
[White "szachmistrz2500"]
[Black "Nekoo04"]
[Result "1-0"]
[WhiteElo "2425"]
[BlackElo "2262"]
[TimeControl "180+1"]
[EndTime "15:23:39 PDT"]
[Termination "szachmistrz2500 won by resignation"]

1. Nf3 {[%clk 0:02:48.8]} 1... Nf6 {[%clk 0:02:58.8]} 2. g3 {[%clk 0:02:46.2]}
2... d5 {[%clk 0:02:59.2]} 3. Bg2 {[%clk 0:02:46.2]} 3... c5 {[%clk 0:02:50.3]}
4. O-O {[%clk 0:02:46]} 4... Nc6 {[%clk 0:02:50.8]} 5. d3 {[%clk 0:02:46.2]}
5... e6 {[%clk 0:02:47.9]} 6. Nbd2 {[%clk 0:02:46.1]} 6... g6 {[%clk 0:02:48.3]}
7. e4 {[%clk 0:02:46.4]} 7... Bg7 {[%clk 0:02:49]} 8. c3 {[%clk 0:02:46]} 8...
O-O {[%clk 0:02:46.2]} 9. Qe2 {[%clk 0:02:45.7]} 9... a5 {[%clk 0:02:40.9]} 10.
Re1 {[%clk 0:02:42.9]} 10... b6 {[%clk 0:02:32.5]} 11. e5 {[%clk 0:02:43]} 11...
Nd7 {[%clk 0:02:32.1]} 12. d4 {[%clk 0:02:43.2]} 12... cxd4 {[%clk 0:02:30.4]}
13. cxd4 {[%clk 0:02:43]} 13... Ba6 {[%clk 0:02:30.4]} 14. Qd1 {[%clk
0:02:40.8]} 14... f6 {[%clk 0:02:23.9]} 15. exf6 {[%clk 0:02:37.4]} 15... Qxf6
{[%clk 0:02:24.8]} 16. Nf1 {[%clk 0:02:35.5]} 16... Nxd4 {[%clk 0:02:17]} 17.
Nxd4 {[%clk 0:02:23.9]} 17... Qxf2+ {[%clk 0:01:56.3]} 18. Kh1 {[%clk
0:02:23.5]} 18... Bxd4 {[%clk 0:01:56]} 19. Nd2 {[%clk 0:02:20.4]} 19... Ne5
{[%clk 0:01:25.4]} 20. Nb3 {[%clk 0:02:15.4]} 20... Nd3 {[%clk 0:01:05.9]} 21.
Re2 {[%clk 0:02:10.4]} 21... Qxe2 {[%clk 0:01:04.8]} 22. Qxe2 {[%clk 0:02:09.4]}
22... Nf2+ {[%clk 0:01:05]} 23. Qxf2 {[%clk 0:02:09.6]} 23... Bxf2 {[%clk
0:01:04.8]} 24. Bh6 {[%clk 0:02:09.5]} 24... Rf7 {[%clk 0:00:53.5]} 25. Bh3
{[%clk 0:02:08.6]} 25... Re8 {[%clk 0:00:52.7]} 26. Rc1 {[%clk 0:02:07.6]} 26...
a4 {[%clk 0:00:43.9]} 27. Na1 {[%clk 0:02:00.8]} 27... Bd4 {[%clk 0:00:43.4]}
28. Rc6 {[%clk 0:01:55.9]} 28... Rc8 {[%clk 0:00:30.7]} 29. Rxe6 {[%clk
0:01:52.2]} 29... Rc1+ {[%clk 0:00:29.6]} 30. Bxc1 {[%clk 0:01:51.3]} 30... Bf1
{[%clk 0:00:24.9]} 31. Bh6 {[%clk 0:01:38.3]} 31... Bg7 {[%clk 0:00:14.9]} 32.
Re8+ {[%clk 0:01:37.3]} 32... Rf8 {[%clk 0:00:12]} 33. Be6+ {[%clk 0:01:37]} 1-0

[Event "Late-Titled-Tuesday-Blitz-October-17-2023"]
[Site "Chess.com"]
[Date "2023.10.17"]
[Round "8"]
[White "Chesstrainer1"]
[Black "LogoCzar"]
[Result "1-0"]
[WhiteElo "2504"]
[BlackElo "2397"]
[TimeControl "180+1"]
[EndTime "15:23:43 PDT"]
[Termination "Chesstrainer1 won by resignation"]

1. e4 {[%clk 0:02:56.2]} 1... c5 {[%clk 0:02:59.7]} 2. Nf3 {[%clk 0:02:55.5]}
2... Nc6 {[%clk 0:02:59.7]} 3. d4 {[%clk 0:02:56]} 3... cxd4 {[%clk 0:02:59.5]}
4. Nxd4 {[%clk 0:02:56.9]} 4... Nf6 {[%clk 0:02:59.6]} 5. Nc3 {[%clk 0:02:57]}
5... h5 {[%clk 0:02:59.1]} 6. Be2 {[%clk 0:02:46.7]} 6... e6 {[%clk 0:02:57.8]}
7. Nxc6 {[%clk 0:02:40]} 7... bxc6 {[%clk 0:02:56.2]} 8. e5 {[%clk 0:02:40.9]}
8... Nd5 {[%clk 0:02:56.1]} 9. Ne4 {[%clk 0:02:40.2]} 9... Qc7 {[%clk
0:02:55.8]} 10. f4 {[%clk 0:02:38.5]} 10... f5 {[%clk 0:02:53.1]} 11. Bxh5+
{[%clk 0:02:17.9]} 11... Kd8 {[%clk 0:02:50.3]} 12. Nf2 {[%clk 0:02:12.4]} 12...
Bc5 {[%clk 0:02:46.2]} 13. Nd3 {[%clk 0:01:56.8]} 13... Be7 {[%clk 0:02:37.7]}
14. c4 {[%clk 0:01:43]} 14... Nb6 {[%clk 0:02:32.4]} 15. b3 {[%clk 0:01:39.9]}
15... g5 {[%clk 0:02:28.1]} 16. fxg5 {[%clk 0:01:32.8]} 16... d6 {[%clk
0:02:25.7]} 17. exd6 {[%clk 0:01:02]} 17... Qxd6 {[%clk 0:02:22.3]} 18. Bf4
{[%clk 0:00:51]} 18... Qd4 {[%clk 0:02:10.4]} 19. Ne5 {[%clk 0:00:50.2]} 19...
Bb4+ {[%clk 0:02:08.4]} 20. Ke2 {[%clk 0:00:50]} 20... Qxd1+ {[%clk 0:01:54.4]}
21. Raxd1+ {[%clk 0:00:50.9]} 21... Ke7 {[%clk 0:01:52.9]} 22. Ng6+ {[%clk
0:00:50.1]} 22... Kf7 {[%clk 0:01:52.5]} 23. Nxh8+ {[%clk 0:00:51]} 23... Kg7
{[%clk 0:01:52.7]} 24. Be5+ {[%clk 0:00:49.4]} 24... Kh7 {[%clk 0:01:52.6]} 25.
Bf3 {[%clk 0:00:40.6]} 25... Ba6 {[%clk 0:01:49.9]} 26. g6+ {[%clk 0:00:40.3]}
26... Kh6 {[%clk 0:01:49.5]} 27. g7 {[%clk 0:00:39.2]} 27... Nd5 {[%clk
0:01:46.9]} 28. Nf7+ {[%clk 0:00:36]} 28... Kh7 {[%clk 0:01:45.9]} 29. Ng5+
{[%clk 0:00:35.3]} 29... Kg6 {[%clk 0:01:45.8]} 30. h4 {[%clk 0:00:33.3]} 30...
Ne7 {[%clk 0:01:43.8]} 31. Nxe6 {[%clk 0:00:31.4]} 31... f4 {[%clk 0:01:41.8]}
32. Nxf4+ {[%clk 0:00:30.7]} 32... Kf5 {[%clk 0:01:41.7]} 33. Nd3 {[%clk
0:00:30.8]} 33... Ba5 {[%clk 0:01:40.1]} 34. g4+ {[%clk 0:00:31]} 34... Ke6
{[%clk 0:01:37.9]} 35. h5 {[%clk 0:00:31.2]} 35... Re8 {[%clk 0:01:31.9]} 36. h6
{[%clk 0:00:30.9]} 36... Ng6 {[%clk 0:01:31.5]} 37. h7 {[%clk 0:00:30.7]} 37...
Nxe5 {[%clk 0:01:29.1]} 38. Nxe5 {[%clk 0:00:30.8]} 38... Kxe5 {[%clk
0:01:28.1]} 39. g8=Q {[%clk 0:00:30.8]} 1-0

[Event "Late-Titled-Tuesday-Blitz-October-17-2023"]
[Site "Chess.com"]
[Date "2023.10.17"]
[Round "8"]
[White "Haykoooo0o"]
[Black "Maksimus1998"]
[Result "0-1"]
[WhiteElo "2469"]
[BlackElo "2621"]
[TimeControl "180+1"]
[EndTime "15:23:48 PDT"]
[Termination "Maksimus1998 won by checkmate"]

1. d4 {[%clk 0:03:00.9]} 1... Nf6 {[%clk 0:02:59.6]} 2. Nf3 {[%clk 0:03:01.5]}
2... e6 {[%clk 0:02:59.1]} 3. e3 {[%clk 0:03:01.2]} 3... b6 {[%clk 0:02:56.2]}
4. Bd3 {[%clk 0:03:01.7]} 4... Bb7 {[%clk 0:02:55.5]} 5. Nbd2 {[%clk 0:03:02.4]}
5... g6 {[%clk 0:02:55.7]} 6. O-O {[%clk 0:03:02]} 6... Bg7 {[%clk 0:02:55.8]}
7. e4 {[%clk 0:03:01.8]} 7... O-O {[%clk 0:02:55.5]} 8. c3 {[%clk 0:02:59.6]}
8... d6 {[%clk 0:02:55.4]} 9. Qe2 {[%clk 0:02:59.2]} 9... Nbd7 {[%clk
0:02:55.5]} 10. e5 {[%clk 0:02:58.4]} 10... Nd5 {[%clk 0:02:53.1]} 11. Nc4
{[%clk 0:02:56.7]} 11... dxe5 {[%clk 0:02:49]} 12. Ncxe5 {[%clk 0:02:56.6]}
12... Nxe5 {[%clk 0:02:44.7]} 13. dxe5 {[%clk 0:02:49.3]} 13... c5 {[%clk
0:02:38.2]} 14. a3 {[%clk 0:02:47.6]} 14... Qc7 {[%clk 0:02:37.2]} 15. c4 {[%clk
0:02:45.9]} 15... Ne7 {[%clk 0:02:36.5]} 16. Bg5 {[%clk 0:02:41.9]} 16... Bxf3
{[%clk 0:02:31.3]} 17. Qxf3 {[%clk 0:02:40.6]} 17... Bxe5 {[%clk 0:02:31]} 18.
Bxe7 {[%clk 0:02:40.6]} 18... Qxe7 {[%clk 0:02:31.7]} 19. Rab1 {[%clk 0:02:36]}
19... Rad8 {[%clk 0:02:30.5]} 20. b3 {[%clk 0:02:35.8]} 20... Qh4 {[%clk
0:02:27.7]} 21. g3 {[%clk 0:02:34.4]} 21... Qe7 {[%clk 0:02:21.4]} 22. Rfd1
{[%clk 0:02:33.9]} 22... Rd4 {[%clk 0:02:20.9]} 23. Be2 {[%clk 0:02:32]} 23...
Rfd8 {[%clk 0:02:20.2]} 24. Rxd4 {[%clk 0:02:32.7]} 24... Bxd4 {[%clk
0:02:21.1]} 25. Rd1 {[%clk 0:02:31.9]} 25... Kg7 {[%clk 0:02:20.5]} 26. Kg2
{[%clk 0:02:31.2]} 26... h5 {[%clk 0:02:20.3]} 27. h4 {[%clk 0:02:31]} 27... Qf6
{[%clk 0:02:10]} 28. Qxf6+ {[%clk 0:02:30.8]} 28... Kxf6 {[%clk 0:02:10.9]} 29.
Bf3 {[%clk 0:02:27.3]} 29... Rb8 {[%clk 0:02:07.7]} 30. a4 {[%clk 0:02:26.3]}
30... Ke7 {[%clk 0:02:04.9]} 31. Kf1 {[%clk 0:02:23.3]} 31... f5 {[%clk
0:02:01.4]} 32. Bg2 {[%clk 0:02:17.8]} 32... e5 {[%clk 0:01:51.2]} 33. Bd5
{[%clk 0:02:17.5]} 33... Kf6 {[%clk 0:01:51.5]} 34. f3 {[%clk 0:02:13.9]} 34...
g5 {[%clk 0:01:51.5]} 35. hxg5+ {[%clk 0:02:13.6]} 35... Kxg5 {[%clk 0:01:52.4]}
36. Kg2 {[%clk 0:02:14.2]} 36... Re8 {[%clk 0:01:43.3]} 37. Rh1 {[%clk
0:02:10.4]} 37... Re7 {[%clk 0:01:36.1]} 38. Rh4 {[%clk 0:01:53.7]} 38... Rg7
{[%clk 0:01:27.3]} 39. f4+ {[%clk 0:01:43.3]} 39... exf4 {[%clk 0:01:24.5]} 40.
Rxf4 {[%clk 0:01:44]} 40... Re7 {[%clk 0:01:21.7]} 41. Bf3 {[%clk 0:01:30.4]}
41... Re1 {[%clk 0:01:09]} 42. Rh4 {[%clk 0:01:30.1]} 42... Rg1+ {[%clk
0:01:08.7]} 43. Kh2 {[%clk 0:01:30]} 43... Rb1 {[%clk 0:01:08.8]} 44. Rxh5+
{[%clk 0:01:26.9]} 44... Kg6 {[%clk 0:01:09.2]} 45. g4 {[%clk 0:01:22.8]} 45...
Rb2+ {[%clk 0:01:04.3]} 46. Kg3 {[%clk 0:01:15.9]} 46... Be5+ {[%clk 0:01:03.6]}
47. Kh3 {[%clk 0:01:11.2]} 47... Rh2# {[%clk 0:01:02.7]} 0-1